fUST/lending_fUST_20250607
["ID","MTS","AMOUNT","RATE_DAILY","PERIOD"]
[364759846,1749231039372,-430.0,0.00019178,2]
[364759847,1749231039382,-440.0,0.00019178,2]
[364759848,1749231039391,-430.0,0.00019178,2]
[364759849,1749231039401,-430.0,0.00019178,2]
[364759850,1749231039410,-440.0,0.00019178,2]
[364759851,1749231039419,-440.0,0.00019178,2]
[364759852,1749231039428,-484.04,0.00019178,2]
[364759853,1749231039437,-151.0,0.00019178,2]
[364759854,1749231039447,-440.0,0.00019178,2]
[364759855,1749231039456,-440.0,0.00019178,2]
[364759856,1749231039465,-203.14117043,0.00019178,2]
[364759857,1749231039474,-440.0,0.00019178,2]
[364759858,1749231039483,-440.0,0.00019178,2]
[364759859,1749231039492,-584.56,0.00019178,2]
[364759860,1749231039502,-430.0,0.00019178,2]
[364759861,1749231039511,-457.39357246,0.00019178,2]
[364759862,1749231039520,-738.11,0.00019178,2]
[364759863,1749231039529,-440.0,0.00019178,2]
[364759864,1749231039538,-440.0,0.00019178,2]
[364759865,1749231039547,-440.0,0.00019178,2]
[364759866,1749231039556,-275.77616446,0.00019178,2]
[364759867,1749231039566,-469.17,0.00019178,2]
[364759868,1749231039575,-440.0,0.00019178,2]
[364759869,1749231039585,-440.0,0.00019178,2]
[364759870,1749231039594,-655.59,0.00019178,2]
[364759871,1749231039603,-440.0,0.00019178,2]
[364759872,1749231039613,-151.0,0.00019201,2]
[364759873,1749231039622,-151.0,0.00019229,2]
[364759874,1749231039631,-500.0,0.00019255,2]
[364759875,1749231039641,-500.0,0.00019255,2]
[364759876,1749231039650,-581.69293742,0.00019255,2]
[364759877,1749231039660,-151.0,0.00019256,2]
[364759878,1749231039669,-800.0,0.00019271,2]
[364759879,1749231039679,-293.71584771,0.00019274,2]
[364759880,1749231039689,-151.0,0.00019284,2]
[364759881,1749231039698,-243.70160215,0.00019311,2]
[364759882,1749231039712,-440.0,0.00019452,2]
[364759883,1749231039725,-440.0,0.00019452,2]
[364759884,1749231039739,-462.48927537,0.00019452,2]
[364759885,1749231039748,-440.0,0.00019452,2]
[364759886,1749231039757,-993.94,0.00019452,2]
[364759887,1749231039767,-431.95115847,0.00019452,2]
[364759888,1749231039776,-440.0,0.00019452,2]
[364759889,1749231039786,-440.0,0.00019452,2]
[364759890,1749231039795,-440.0,0.00019452,2]
[364759891,1749231039804,-440.0,0.00019452,2]
[364759892,1749231039813,-413.60155761,0.00019452,2]
[364759893,1749231039822,-440.0,0.00019452,2]
[364759894,1749231039832,-173.35401133,0.00019452,2]
[364759895,1749231039841,-440.0,0.00019452,2]
[364759896,1749231039851,-440.0,0.00019452,2]
[364759897,1749231039860,-438.92870979,0.00019452,2]
[364759898,1749231039872,-440.0,0.00019452,2]
[364759899,1749231039882,-440.0,0.00019452,2]
[364759900,1749231039891,-440.0,0.00019452,2]
[364759901,1749231039901,-440.0,0.00019452,2]
[364759902,1749231039910,-440.0,0.00019452,2]
[364759903,1749231039920,-517.681607,0.00019452,2]
[364759904,1749231039929,-440.0,0.00019452,2]
[364759905,1749231039939,-440.0,0.00019452,2]
[364759906,1749231039948,-440.0,0.00019452,2]
[364759908,1749231039957,-440.0,0.00019452,2]
[364759909,1749231039967,-440.0,0.00019452,2]
[364759910,1749231039976,-321.15,0.00019452,2]
[364759911,1749231039989,-440.0,0.00019452,2]
[364759912,1749231039999,-440.0,0.00019452,2]
[364759913,1749231040008,-440.0,0.00019452,2]
[364759914,1749231040017,-440.0,0.00019452,2]
[364759915,1749231040026,-1124.74,0.00019452,2]
[364759916,1749231040036,-440.0,0.00019452,2]
[364759917,1749231040046,-434.95503632,0.00019452,2]
[364759918,1749231040055,-440.0,0.00019452,2]
[364759919,1749231040065,-440.0,0.00019452,2]
[364759920,1749231040195,-440.0,0.00019452,2]
[364759921,1749231040205,-440.0,0.00019452,2]
[364759922,1749231040214,-440.0,0.00019452,2]
[364759924,1749231040223,-440.0,0.00019452,2]
[364759926,1749231040233,-440.0,0.00019452,2]
[364759928,1749231040243,-438.66104185,0.00019452,2]
[364759930,1749231040252,-569.88,0.00019452,2]
[364759932,1749231040261,-440.31551229,0.00019452,2]
[364759934,1749231040270,-440.0,0.00019452,2]
[364759936,1749231040279,-440.0,0.00019452,2]
[364759938,1749231040289,-440.0,0.00019452,2]
[364759940,1749231040298,-720.6,0.00019452,2]
[364759942,1749231040307,-440.0,0.00019452,2]
[364759944,1749231040317,-440.0,0.00019452,2]
[364759946,1749231040325,-440.0,0.00019452,2]
[364759948,1749231040336,-484.04,0.00019452,2]
[364759950,1749231040345,-440.0,0.00019452,2]
[364759952,1749231040354,-440.0,0.00019452,2]
[364759954,1749231040363,-440.0,0.00019452,2]
[364759956,1749231040373,-449.40865632,0.00019452,2]
[364759958,1749231040383,-584.56,0.00019452,2]
[364759960,1749231040393,-738.11,0.00019452,2]
[364759962,1749231040402,-437.92074179,0.00019452,2]
[364759964,1749231040411,-440.0,0.00019452,2]
[364759966,1749231040421,-440.0,0.00019452,2]
[364759968,1749231040431,-469.17,0.00019452,2]
[364759970,1749231040440,-440.0,0.00019452,2]
[364759972,1749231040449,-440.0,0.00019452,2]
[364759975,1749231040459,-655.59,0.00019452,2]
[364759977,1749231040470,-207.4,0.00019498,2]
[364759979,1749231040479,-2069.51782921,0.00019498,2]
[364759981,1749231040496,-440.0,0.00019452,2]
[364759984,1749231040507,-2930.48217079,0.00019498,2]
[364759985,1749231040517,-1029.51783956,0.00019599,2]
[364759988,1749231040528,-247.17285144,0.00019599,2]
[364759990,1749231040537,-317.2659626,0.000196,2]
[364759992,1749231040546,-153.0,0.000196,2]
[364759994,1749231040555,-1145.8555726,0.000196,2]
[364759996,1749231040564,-153.0,0.000196,2]
[364759998,1749231040573,-123.70561336,0.000196,2]
[364760010,1749231040679,-193.56034924,0.000196,2]
[364760012,1749231040688,-158.6329813,0.000196,2]
[364760014,1749231040698,-192.47510065,0.00019644,2]
[364760016,1749231040709,-113.52489935,0.00019644,2]
[364760018,1749231040718,-176.6779968,0.00019644,2]
[364760020,1749231040728,-176.6779968,0.00019644,2]
[364760022,1749231040737,-176.6779968,0.00019644,2]
[364760024,1749231040747,-293.43696557,0.00019644,2]
[364760026,1749231040759,-279.49082073,0.00019644,2]
[364760028,1749231040768,-176.6779968,0.00019644,2]
[364760030,1749231040777,-176.6472864,0.00019644,2]
[364760032,1749231040786,-317.2659626,0.000197,2]
[364760035,1749231040796,-1145.8555726,0.000197,2]
[364760037,1749231040805,-176.6779968,0.000197,2]
[364760039,1749231040815,-153.0,0.000197,2]
[364760041,1749231040824,-334.7769756,0.000197,2]
[364760043,1749231040833,-1145.8555726,0.000197,2]
[364760045,1749231040843,-158.6329813,0.000197,2]
[364760047,1749231040853,-625.3438721,0.000197,2]
[364760049,1749231040863,-440.0,0.00019726,2]
[364760051,1749231040874,-440.0,0.00019726,2]
[364760053,1749231040884,-440.0,0.00019726,2]
[364760055,1749231040893,-993.94,0.00019726,2]
[364760057,1749231040903,-440.0,0.00019726,2]
[364760059,1749231040911,-440.0,0.00019726,2]
[364760061,1749231040920,-440.0,0.00019726,2]
[364760063,1749231040930,-440.0,0.00019726,2]
[364760065,1749231040938,-440.0,0.00019726,2]
[364760067,1749231040947,-440.0,0.00019726,2]
[364760069,1749231040957,-462.62435619,0.00019726,2]
[364760071,1749231040966,-440.0,0.00019726,2]
[364760073,1749231040975,-440.0,0.00019726,2]
[364760075,1749231040985,-440.0,0.00019726,2]
[364760077,1749231040996,-269.7109868,0.00019726,2]
[364760079,1749231041007,-170.2890132,0.00019726,2]
[364760081,1749231041017,-440.0,0.00019726,2]
[364760083,1749231041026,-259.42549788,0.00019726,2]
[364760086,1749231041037,-180.57450212,0.00019726,2]
[364760088,1749231041046,-440.0,0.00019726,2]
[364760090,1749231041055,-440.0,0.00019726,2]
[364760092,1749231041065,-440.0,0.00019726,2]
[364760093,1749231041073,-435.65984197,0.00019726,2]
[364760095,1749231041083,-440.0,0.00019726,2]
[364760097,1749231041092,-440.0,0.00019726,2]
[364760099,1749231041101,-1124.74,0.00019726,2]
[364760101,1749231041110,-428.58294143,0.00019726,2]
[364760364,1749231043601,-440.0,0.00019178,2]
[364760366,1749231043610,-440.0,0.00019452,2]
[364760368,1749231043619,-11.41705857,0.00019726,2]
[364760370,1749231043629,-440.0,0.00019726,2]
[364760372,1749231043639,-440.0,0.00019726,2]
[364760374,1749231043648,-440.0,0.00019726,2]
[364760376,1749231043657,-440.0,0.00019726,2]
[364760378,1749231043667,-440.0,0.00019726,2]
[364760380,1749231043677,-440.0,0.00019726,2]
[364760382,1749231043686,-440.0,0.00019726,2]
[364760384,1749231043694,-569.88,0.00019726,2]
[364760386,1749231043704,-440.0,0.00019726,2]
[364760388,1749231043713,-440.0,0.00019726,2]
[364760390,1749231043724,-440.0,0.00019726,2]
[364760393,1749231043733,-720.6,0.00019726,2]
[364760394,1749231043742,-440.0,0.00019726,2]
[364760396,1749231043751,-440.0,0.00019726,2]
[364760398,1749231043760,-440.0,0.00019726,2]
[364760401,1749231043770,-484.04,0.00019726,2]
[364760403,1749231043779,-360.3,0.00019726,2]
[364760405,1749231043787,-440.0,0.00019726,2]
[364760407,1749231043796,-440.0,0.00019726,2]
[364760409,1749231043806,-584.56,0.00019726,2]
[364760411,1749231043815,-738.11,0.00019726,2]
[364760413,1749231043824,-440.0,0.00019726,2]
[364760415,1749231043834,-469.17,0.00019726,2]
[364760417,1749231043843,-440.0,0.00019726,2]
[364760419,1749231043852,-440.0,0.00019726,2]
[364760421,1749231043861,-655.59,0.00019726,2]
[364760423,1749231043870,-440.0,0.00019726,2]
[364760425,1749231043880,-440.0,0.00019726,2]
[364760427,1749231043889,-168.48146737,0.00019763,2]
[364760429,1749231043898,-158.6329813,0.000198,2]
[364760431,1749231043907,-153.0,0.000198,2]
[364760433,1749231043916,-572.9277863,0.000198,2]
[364760435,1749231043926,-176.6779968,0.000198,2]
[364760437,1749231043935,-153.0,0.000198,2]
[364760439,1749231043945,-500.38533967,0.00019857,2]
[364760441,1749231043954,-9089.68633455,0.0002,2]
[364760443,1749231043963,-151.0,0.0002,2]
[364760445,1749231043972,-151.0,0.0002,2]
[364760447,1749231043981,-440.0,0.0002,2]
[364760449,1749231043993,-151.0,0.0002,2]
[364760451,1749231044002,-151.0,0.0002,2]
[364760453,1749231044011,-151.0,0.0002,2]
[364760455,1749231044021,-440.0,0.0002,2]
[364760457,1749231044030,-151.0,0.0002,2]
[364760459,1749231044040,-440.0,0.0002,2]
[364760461,1749231044049,-993.94,0.0002,2]
[364760463,1749231044058,-151.0,0.0002,2]
[364760465,1749231044067,-151.0,0.0002,2]
[364760467,1749231044076,-151.0,0.0002,2]
[364760469,1749231044084,-418.6292932,0.0002,2]
[364760471,1749231044093,-151.0,0.0002,2]
[364760473,1749231044102,-151.0,0.0002,2]
[364760475,1749231044111,-151.0,0.0002,2]
[364760477,1749231044120,-151.0,0.0002,2]
[364760478,1749231044130,-151.0,0.0002,2]
[364760481,1749231044140,-440.0,0.0002,2]
[364760483,1749231044150,-151.0,0.0002,2]
[364760485,1749231044160,-440.0,0.0002,2]
[364760487,1749231044169,-246.434,0.0002,2]
[364760489,1749231044178,-440.0,0.0002,2]
[364760491,1749231044187,-440.0,0.0002,2]
[364760493,1749231044196,-440.0,0.0002,2]
[364760494,1749231044205,-400.0,0.0002,2]
[364760496,1749231044215,-440.0,0.0002,2]
[364760498,1749231044226,-151.0,0.0002,2]
[364760500,1749231044235,-440.0,0.0002,2]
[364760502,1749231044244,-1124.74,0.0002,2]
[364760504,1749231044254,-152.406247,0.0002,2]
[364760507,1749231044263,-440.0,0.0002,2]
[364760509,1749231044272,-151.0,0.0002,2]
[364760511,1749231044283,-440.0,0.0002,2]
[364760513,1749231044292,-440.0,0.0002,2]
[364760515,1749231044302,-151.0,0.0002,2]
[364760517,1749231044311,-569.88,0.0002,2]
[364760519,1749231044320,-440.0,0.0002,2]
[364760521,1749231044330,-720.6,0.0002,2]
[364760523,1749231044339,-440.0,0.0002,2]
[364760525,1749231044349,-440.0,0.0002,2]
[364760527,1749231044358,-440.0,0.0002,2]
[364760529,1749231044367,-151.0,0.0002,2]
[364760531,1749231044377,-484.04,0.0002,2]
[364760533,1749231044387,-420.0,0.0002,2]
[364760535,1749231044397,-316.99,0.0002,2]
[364760537,1749231044406,-584.56,0.0002,2]
[364760539,1749231044415,-738.11,0.0002,2]
[364760541,1749231044425,-173.117976,0.0002,2]
[364760543,1749231044434,-173.117976,0.0002,2]
[364760545,1749231044443,-161.912274,0.0002,2]
[364760547,1749231044453,-589.86,0.0002,2]
[364760549,1749231044463,-469.17,0.0002,2]
[364760551,1749231044474,-440.0,0.0002,2]
[364760553,1749231044483,-400.0,0.0002,2]
[364760555,1749231044492,-655.59,0.0002,2]
[364760557,1749231044503,-314.6479893,0.0002,2]
[364760559,1749231044512,-440.0,0.0002,2]
[364760561,1749231044521,-186.004,0.00020134,2]
[364760563,1749231044531,-483.414468,0.00020187,2]
[364760565,1749231044540,-151.0,0.000202,2]
[364760567,1749231044549,-175.165807,0.000202,2]
[364760570,1749231044558,-175.165807,0.000202,2]
[364760572,1749231044568,-151.0,0.000202,2]
[364760574,1749231044577,-818.264622,0.000202,2]
[364760576,1749231044587,-818.264622,0.000202,2]
[364760578,1749231044595,-151.0,0.000202,2]
[364760579,1749231044605,-151.0,0.000202,2]
[364760581,1749231044614,-151.0,0.000202,2]
[364760584,1749231044625,-151.0,0.00020273,2]
[364760586,1749231044634,-151.0,0.00020273,2]
[364760588,1749231044643,-151.0,0.00020273,2]
[364760590,1749231044653,-151.0,0.00020273,2]
[364760592,1749231044662,-151.0,0.00020273,2]
[364760594,1749231044671,-440.0,0.00020273,2]
[364760596,1749231044680,-993.94,0.00020273,2]
[364760598,1749231044690,-440.0,0.00020273,2]
[364760600,1749231044699,-440.0,0.00020273,2]
[364760602,1749231044709,-440.0,0.00020273,2]
[364760604,1749231044719,-440.0,0.00020273,2]
[364760606,1749231044728,-440.0,0.00020273,2]
[364760608,1749231044737,-440.0,0.00020273,2]
[364760610,1749231044747,-440.0,0.00020273,2]
[364760612,1749231044756,-1124.74,0.00020273,2]
[364760614,1749231044765,-440.0,0.00020273,2]
[364760616,1749231044775,-440.0,0.00020273,2]
[364760618,1749231044784,-440.0,0.00020273,2]
[364760620,1749231044793,-569.88,0.00020273,2]
[364760622,1749231044802,-440.0,0.00020273,2]
[364760624,1749231044813,-720.6,0.00020273,2]
[364760626,1749231044822,-472.1255944,0.00020273,2]
[364760628,1749231044832,-440.0,0.00020273,2]
[364760630,1749231044842,-440.0,0.00020273,2]
[364760632,1749231044851,-484.04,0.00020273,2]
[364760634,1749231044861,-584.56,0.00020273,2]
[364760636,1749231044870,-738.11,0.00020273,2]
[364760638,1749231044880,-469.17,0.00020273,2]
[364760640,1749231044889,-440.0,0.00020273,2]
[364760642,1749231044898,-655.59,0.00020273,2]
[364760644,1749231044908,-440.0,0.00020273,2]
[364760646,1749231044917,-654.62198037,0.00020404,2]
[364760648,1749231044926,-151.0,0.00020411,2]
[364760650,1749231044935,-151.0,0.00020411,2]
[364760652,1749231044944,-151.0,0.00020411,2]
[364760654,1749231044954,-151.0,0.00020411,2]
[364760656,1749231044963,-294.503124,0.00020411,2]
[364760658,1749231044973,-168.48146737,0.00020447,2]
[364760660,1749231044982,-150.0,0.00020454,2]
[364760662,1749231044996,-151.0,0.00020466,2]
[364760664,1749231045005,-151.0,0.00020466,2]
[364760666,1749231045014,-252.991752,0.00020466,2]
[364760668,1749231045025,-151.0,0.00020466,2]
[364760670,1749231045034,-151.0,0.00020466,2]
[364760672,1749231045044,-151.0,0.00020466,2]
[364760674,1749231045053,-151.0,0.00020466,2]
[364760676,1749231045063,-3836.83268083,0.00020484,2]
[364760678,1749231045074,-151.0,0.00020484,2]
[364760680,1749231045084,-175.165807,0.00020484,2]
[364760682,1749231045093,-175.165807,0.00020484,2]
[364760684,1749231045102,-818.264622,0.00020484,2]
[364760686,1749231045111,-818.264622,0.00020484,2]
[364760688,1749231045121,-151.0,0.00020484,2]
[364760690,1749231045131,-151.0,0.00020484,2]
[364760692,1749231045140,-151.0,0.00020484,2]
[364760694,1749231045150,-151.0,0.00020547,2]
[364760697,1749231045161,-151.0,0.00020547,2]
[364760698,1749231045170,-152.027987,0.00020547,2]
[364760701,1749231045180,-151.0,0.00020547,2]
[364760703,1749231045189,-151.0,0.00020547,2]
[364760705,1749231045198,-216.540774,0.00020547,2]
[364760706,1749231045207,-341.38636221,0.00020547,2]
[364760708,1749231045216,-440.0,0.00020547,2]
[364760711,1749231045227,-993.94,0.00020547,2]
[364760713,1749231045237,-440.0,0.00020547,2]
[364760715,1749231045246,-440.0,0.00020547,2]
[364760717,1749231045255,-440.0,0.00020547,2]
[364760719,1749231045265,-440.0,0.00020547,2]
[364760721,1749231045273,-440.0,0.00020547,2]
[364760723,1749231045283,-440.0,0.00020547,2]
[364760725,1749231045293,-151.0,0.00020547,2]
[364760727,1749231045302,-440.0,0.00020547,2]
[364760729,1749231045310,-1124.74,0.00020547,2]
[364760731,1749231045320,-259.04,0.00020547,2]
[364760733,1749231045329,-440.0,0.00020547,2]
[364760735,1749231045338,-440.0,0.00020547,2]
[364760737,1749231045347,-569.88,0.00020547,2]
[364760739,1749231045356,-720.6,0.00020547,2]
[364760741,1749231045366,-440.0,0.00020547,2]
[364760743,1749231045375,-484.04,0.00020547,2]
[364760745,1749231045384,-584.56,0.00020547,2]
[364760747,1749231045393,-738.11,0.00020547,2]
[364760749,1749231045403,-173.117976,0.00020547,2]
[364760751,1749231045412,-173.117976,0.00020547,2]
[364760753,1749231045421,-469.17,0.00020547,2]
[364760755,1749231045431,-408.48,0.00020547,2]
[364760757,1749231045441,-655.59,0.00020547,2]
[364760759,1749231045450,-578.01801457,0.00020547,2]
[364760761,1749231045459,-160.0,0.00020595,2]
[364760763,1749231045469,-160.0,0.00020596,2]
[364760765,1749231045479,-212.976918,0.00020596,2]
[364760767,1749231045488,-160.0,0.00020596,2]
[364760769,1749231045497,-160.0,0.00020596,2]
[364760771,1749231045507,-561.57580389,0.00020596,2]
[364760773,1749231045516,-160.0,0.00020596,2]
[364760775,1749231045525,-834.50537533,0.00020596,2]
[364760777,1749231045535,-423.83542519,0.00020596,2]
[364760779,1749231045545,-160.0,0.00020596,2]
[364760781,1749231045554,-229.52673067,0.00020596,2]
[364760783,1749231045563,-1244.93,0.000206,2]
[364760785,1749231045573,-151.0,0.000206,2]
[364760787,1749231045583,-557.73644676,0.00020618,2]
[364760789,1749231045593,-151.0,0.00020618,2]
[364760791,1749231045602,-151.0,0.00020618,2]
[364760793,1749231045611,-151.0,0.00020618,2]
[364760795,1749231045621,-151.0,0.00020618,2]
[364760797,1749231045633,-1000.0,0.00020762,2]
[364760811,1749231045752,-151.0,0.00020821,2]
[364760813,1749231045761,-175.165807,0.00020821,2]
[364760815,1749231045771,-175.165807,0.00020821,2]
[364760817,1749231045780,-440.0,0.00020821,2]
[364760819,1749231045789,-993.94,0.00020821,2]
[364760821,1749231045798,-151.0,0.00020821,2]
[364760823,1749231045808,-151.0,0.00020821,2]
[364760825,1749231045817,-440.0,0.00020821,2]
[364760827,1749231045827,-818.264622,0.00020821,2]
[364760829,1749231045836,-818.264622,0.00020821,2]
[364760831,1749231045846,-440.0,0.00020821,2]
[364760833,1749231045855,-440.0,0.00020821,2]
[364760835,1749231045864,-151.0,0.00020821,2]
[364760837,1749231045873,-440.0,0.00020821,2]
[364760839,1749231045883,-151.0,0.00020821,2]
[364760841,1749231045892,-151.0,0.00020821,2]
[364760843,1749231045902,-440.0,0.00020821,2]
[364760845,1749231045911,-472.81,0.00020821,2]
[364760847,1749231045920,-1124.74,0.00020821,2]
[364760849,1749231045929,-151.0,0.00020821,2]
[364760851,1749231045939,-440.0,0.00020821,2]
[364760853,1749231045948,-228.48,0.00020821,2]
[364760855,1749231045957,-217.012347,0.00020821,2]
[364760857,1749231045966,-569.88,0.00020821,2]
[364760859,1749231045977,-720.6,0.00020821,2]
[364760862,1749231045987,-440.0,0.00020821,2]
[364760863,1749231045999,-151.0,0.00020821,2]
[364760865,1749231046009,-484.04,0.00020821,2]
[364760868,1749231046018,-584.56,0.00020821,2]
[364760870,1749231046027,-738.11,0.00020821,2]
[364760872,1749231046037,-469.17,0.00020821,2]
[364760874,1749231046045,-655.59,0.00020821,2]
[364760876,1749231046055,-316.7168583,0.00020856,2]
[364760878,1749231046064,-215.0738,0.00020867,2]
[364760880,1749231046074,-165.10765568,0.00020871,2]
[364760882,1749231046084,-420.0,0.0002089,2]
[364760885,1749231046094,-420.0,0.00020892,2]
[364760887,1749231046104,-260.4657764,0.000209,2]
[364760890,1749231046114,-173.117976,0.000209,2]
[364760892,1749231046124,-173.117976,0.000209,2]
[364760894,1749231046133,-650.8227627,0.000209,4]
[364760896,1749231046144,-1680.0,0.00020991,2]
[364760900,1749231046153,-650.82276244,0.00021038,4]
[364760902,1749231046163,-225.806034,0.00021095,2]
[364760905,1749231046172,-245.465958,0.00021095,2]
[364760908,1749231046182,-245.465958,0.00021095,2]
[364760911,1749231046191,-151.0,0.00021095,2]
[364760913,1749231046200,-151.0,0.00021095,2]
[364760915,1749231046209,-151.0,0.00021095,2]
[364760917,1749231046219,-156.657407,0.00021095,2]
[364760919,1749231046228,-440.0,0.00021095,2]
[364760921,1749231046237,-993.94,0.00021095,2]
[364760922,1749231046246,-151.0,0.00021095,2]
[364760925,1749231046256,-151.0,0.00021095,2]
[364760926,1749231046265,-151.0,0.00021095,2]
[364760929,1749231046274,-151.0,0.00021095,2]
[364760930,1749231046284,-440.0,0.00021095,2]
[364760932,1749231046294,-440.0,0.00021095,2]
[364760934,1749231046303,-495.58,0.00021095,2]
[364760936,1749231046313,-440.0,0.00021095,2]
[364760938,1749231046323,-440.0,0.00021095,2]
[364760941,1749231046332,-1124.74,0.00021095,2]
[364760942,1749231046341,-440.0,0.00021095,2]
[364760945,1749231046351,-569.88,0.00021095,2]
[364760947,1749231046361,-720.6,0.00021095,2]
[364760948,1749231046371,-440.0,0.00021095,2]
[364760949,1749231046380,-484.04,0.00021095,2]
[364760950,1749231046390,-584.56,0.00021095,2]
[364760951,1749231046399,-738.11,0.00021095,2]
[364760952,1749231046409,-469.17,0.00021095,2]
[364760953,1749231046419,-655.59,0.00021095,2]
[364760954,1749231046429,-500.0,0.00021138,2]
[364760955,1749231046438,-650.82276244,0.00021176,4]
[364760956,1749231046447,-175.165807,0.0002121,2]
[364760957,1749231046456,-175.165807,0.0002121,2]
[364760958,1749231046466,-3000.0,0.000213,2]
[364760959,1749231046477,-28861.06,0.000213,2]
[364760961,1749231046486,-245.465958,0.000213,2]
[364760963,1749231046495,-245.465958,0.000213,2]
[364760965,1749231046505,-151.0,0.000213,2]
[364760967,1749231046514,-298.834266,0.000213,2]
[364760969,1749231046526,-151.0,0.000213,2]
[364760971,1749231046536,-247.8257,0.000213,2]
[364760973,1749231046546,-175.165807,0.000213,2]
[364760975,1749231046555,-175.165807,0.000213,2]
[364760977,1749231046565,-151.0,0.000213,2]
[364760979,1749231046574,-151.0,0.000213,2]
[364760981,1749231046583,-294.221276,0.000213,2]
[364760983,1749231046592,-151.0,0.000213,2]
[364760985,1749231046601,-151.0,0.000213,2]
[364760987,1749231046611,-151.0,0.000213,2]
[364760989,1749231046621,-818.264622,0.000213,2]
[364760991,1749231046630,-596.28803753,0.000213,2]
[364760993,1749231046645,-221.97658447,0.000213,2]
[364760995,1749231046655,-151.0,0.000213,2]
[364760997,1749231046664,-151.0,0.000213,2]
[364760999,1749231046673,-247.891294,0.000213,2]
[364761002,1749231046683,-151.0,0.000213,2]
[364761004,1749231046692,-151.0,0.000213,2]
[364761006,1749231046703,-173.117976,0.000213,2]
[364761008,1749231046713,-173.117976,0.000213,2]
[364761010,1749231046724,-5527.667917,0.0002131,2]
[364761012,1749231046734,-650.82276244,0.00021314,5]
[364761014,1749231046744,-506.42001689,0.00021369,2]
[364761016,1749231046753,-993.94,0.00021369,2]
[364761018,1749231046763,-440.0,0.00021369,2]
[364761020,1749231046772,-440.0,0.00021369,2]
[364761022,1749231046782,-440.0,0.00021369,2]
[364761024,1749231046792,-1124.74,0.00021369,2]
[364761026,1749231046801,-440.0,0.00021369,2]
[364761028,1749231046811,-569.88,0.00021369,2]
[364761030,1749231046820,-720.6,0.00021369,2]
[364761032,1749231046830,-440.0,0.00021369,2]
[364761034,1749231046840,-484.04,0.00021369,2]
[364761036,1749231046850,-584.56,0.00021369,2]
[364761038,1749231046859,-738.11,0.00021369,2]
[364761040,1749231046869,-469.17,0.00021369,2]
[364761042,1749231046879,-655.59,0.00021369,2]
[364761044,1749231046888,-650.82276244,0.00021452,5]
[364761046,1749231046899,-600.0,0.00021569,2]
[364761048,1749231046908,-506.65956259,0.00021569,2]
[364761050,1749231046917,-500.0,0.00021569,2]
[364761052,1749231046927,-500.0,0.00021569,2]
[364761054,1749231046936,-650.82276244,0.0002159,5]
[364761056,1749231046946,-151.0,0.00021643,2]